fUST/lending_fUST_20250210
["ID","MTS","AMOUNT","RATE_DAILY","PERIOD"]
[352593334,1739184657820,-500.0,0.00013287,2]
[352593335,1739184657829,-1015.98,0.00013287,2]
[352593336,1739184657838,-2296.21,0.00013287,2]
[352593337,1739184657847,-823.48,0.00013287,2]
[352593338,1739184657857,-593.0,0.00013298,2]
[352593339,1739184657866,-153.924,0.000133,2]
[352593340,1739184657876,-174.70464572,0.00013311,2]
[352593341,1739184657885,-500.0,0.00013385,2]
[352593342,1739184657895,-897.47,0.00013424,2]
[352593343,1739184657904,-500.0,0.00013424,2]
[352593344,1739184657913,-535.73,0.00013424,2]
[352593345,1739184657922,-645.58,0.00013424,2]
[352593346,1739184657932,-151.0,0.00013424,2]
[352593347,1739184657942,-151.0,0.00013424,2]
[352593348,1739184657953,-528.76,0.00013424,2]
[352593349,1739184657962,-224.62088,0.00013424,2]
[352593350,1739184657972,-583.35,0.00013424,2]
[352593351,1739184657982,-224.62088,0.00013424,2]
[352593352,1739184657991,-726.45,0.00013424,2]
[352593353,1739184657999,-7025.82,0.00013424,2]
[352593354,1739184658009,-751.32,0.00013424,2]
[352593355,1739184658019,-1185.47,0.00013424,2]
[352593356,1739184658030,-2829.52,0.00013424,2]
[352593357,1739184658039,-615.86,0.00013424,2]
[352593358,1739184658048,-500.0,0.00013424,2]
[352593359,1739184658058,-1553.46,0.00013424,2]
[352593360,1739184658067,-949.6,0.00013424,2]
[352593361,1739184658076,-1053.69,0.00013424,2]
[352593362,1739184658086,-720.36,0.00013424,2]
[352593363,1739184658095,-518.47,0.00013424,2]
[352593364,1739184658104,-7594.31,0.00013424,2]
[352593365,1739184658114,-1522.12,0.00013424,2]
[352593366,1739184658123,-3200.14,0.00013424,2]
[352593367,1739184658133,-514.01,0.00013424,2]
[352593368,1739184658143,-586.2,0.00013424,2]
[352593369,1739184658152,-17335.31,0.00013424,2]
[352593370,1739184658161,-841.1,0.00013424,2]
[352593371,1739184658170,-566.1,0.00013424,2]
[352593372,1739184658180,-935.03,0.00013424,2]
[352593373,1739184658190,-511.84,0.00013424,2]
[352593374,1739184658199,-1576.8,0.00013424,2]
[352593375,1739184658209,-569.11,0.00013424,2]
[352593376,1739184658218,-1562.67,0.00013424,2]
[352593377,1739184658228,-859.56,0.00013424,2]
[352593378,1739184658237,-683.35,0.00013424,2]
[352593379,1739184658247,-151.0,0.00013424,2]
[352593380,1739184658256,-717.77,0.00013424,2]
[352593381,1739184658266,-500.0,0.00013424,2]
[352593382,1739184658275,-500.0,0.00013424,2]
[352593383,1739184658285,-690.64,0.00013424,2]
[352593384,1739184658295,-577.85,0.00013424,2]
[352593385,1739184658305,-1341.29,0.00013424,2]
[352593386,1739184658314,-929.02,0.00013424,2]
[352593387,1739184658323,-1074.82,0.00013424,2]
[352593388,1739184658333,-2801.78,0.00013424,2]
[352593389,1739184658343,-500.0,0.00013424,2]
[352593390,1739184658352,-218.6098342,0.00013424,2]
[352593391,1739184658362,-1015.98,0.00013424,2]
[352593392,1739184658371,-2296.21,0.00013424,2]
[352593393,1739184658380,-823.48,0.00013424,2]
[352593394,1739184658390,-516.62107656,0.00013536,2]
[352593395,1739184658399,-10058.67229835,0.0001356,2]
[352593396,1739184658408,-151.0,0.00013561,2]
[352593397,1739184658418,-363.273098,0.00013561,2]
[352593398,1739184658427,-363.273098,0.00013561,2]
[352593399,1739184658437,-151.0,0.00013561,2]
[352593400,1739184658445,-151.0,0.00013561,2]
[352593401,1739184658455,-151.0,0.00013561,2]
[352593402,1739184658464,-151.24722,0.00013561,2]
[352593403,1739184658473,-897.47,0.00013561,2]
[352593404,1739184658483,-500.0,0.00013561,2]
[352593405,1739184658492,-151.0,0.00013561,2]
[352593406,1739184658501,-151.0,0.00013561,2]
[352593407,1739184658511,-535.73,0.00013561,2]
[352593408,1739184658520,-645.58,0.00013561,2]
[352593409,1739184658531,-528.76,0.00013561,2]
[352593410,1739184658540,-583.35,0.00013561,2]
[352593411,1739184658549,-726.45,0.00013561,2]
[352593412,1739184658558,-7025.82,0.00013561,2]
[352593413,1739184658568,-751.32,0.00013561,2]
[352593414,1739184658578,-1185.47,0.00013561,2]
[352593415,1739184658587,-2829.52,0.00013561,2]
[352593416,1739184658596,-615.86,0.00013561,2]
[352593417,1739184658606,-500.0,0.00013561,2]
[352593418,1739184658616,-1553.46,0.00013561,2]
[352593419,1739184658625,-949.6,0.00013561,2]
[352593420,1739184658635,-1053.69,0.00013561,2]
[352593421,1739184658645,-720.36,0.00013561,2]
[352593422,1739184658653,-518.47,0.00013561,2]
[352593423,1739184658662,-7594.31,0.00013561,2]
[352593424,1739184658671,-1522.12,0.00013561,2]
[352593425,1739184658681,-3200.14,0.00013561,2]
[352593426,1739184658690,-514.01,0.00013561,2]
[352593427,1739184658699,-586.2,0.00013561,2]
[352593428,1739184658709,-17335.31,0.00013561,2]
[352593429,1739184658718,-230.519054,0.00013561,2]
[352593430,1739184658727,-841.1,0.00013561,2]
[352593431,1739184658736,-230.519054,0.00013561,2]
[352593432,1739184658745,-566.1,0.00013561,2]
[352593433,1739184658754,-935.03,0.00013561,2]
[352593434,1739184658763,-511.84,0.00013561,2]
[352593435,1739184658772,-1576.8,0.00013561,2]
[352593436,1739184658783,-569.11,0.00013561,2]
[352593437,1739184658792,-1562.67,0.00013561,2]
[352593438,1739184658802,-859.56,0.00013561,2]
[352593439,1739184658811,-683.35,0.00013561,2]
[352593440,1739184658820,-717.77,0.00013561,2]
[352593441,1739184658830,-500.0,0.00013561,2]
[352593442,1739184658839,-500.0,0.00013561,2]
[352593443,1739184658848,-690.64,0.00013561,2]
[352593444,1739184658857,-151.0,0.00013561,2]
[352593445,1739184658867,-577.85,0.00013561,2]
[352593446,1739184658876,-1341.29,0.00013561,2]
[352593447,1739184658885,-151.0,0.00013561,2]
[352593448,1739184658895,-929.02,0.00013561,2]
[352593449,1739184658904,-1074.82,0.00013561,2]
[352593450,1739184658913,-2801.78,0.00013561,2]
[352593451,1739184658922,-500.0,0.00013561,2]
[352593452,1739184658932,-1015.98,0.00013561,2]
[352593453,1739184658944,-2296.21,0.00013561,2]
[352593454,1739184658954,-823.48,0.00013561,2]
[352593455,1739184658963,-177.670143,0.00013581,2]
[352593456,1739184658972,-151.0,0.00013698,2]
[352593457,1739184658981,-151.0,0.00013698,2]
[352593458,1739184658992,-500.0,0.00013698,3]
[352593459,1739184659001,-897.47,0.00013698,2]
[352593460,1739184659010,-500.0,0.00013698,2]
[352593461,1739184659020,-535.73,0.00013698,2]
[352593462,1739184659031,-645.58,0.00013698,2]
[352593463,1739184659041,-528.76,0.00013698,2]
[352593464,1739184659050,-583.35,0.00013698,2]
[352593465,1739184659059,-256.200398,0.00013698,2]
[352593466,1739184659068,-256.200398,0.00013698,2]
[352593467,1739184659077,-726.45,0.00013698,2]
[352593468,1739184659086,-151.0,0.00013698,2]
[352593469,1739184659096,-7025.82,0.00013698,2]
[352593470,1739184659105,-751.32,0.00013698,2]
[352593471,1739184659115,-1185.47,0.00013698,2]
[352593472,1739184659124,-2829.52,0.00013698,2]
[352593473,1739184659133,-615.86,0.00013698,2]
[352593474,1739184659143,-500.0,0.00013698,2]
[352593475,1739184659152,-1553.46,0.00013698,2]
[352593476,1739184659161,-949.6,0.00013698,2]
[352593477,1739184659171,-1053.69,0.00013698,2]
[352593478,1739184659180,-720.36,0.00013698,2]
[352593479,1739184659189,-518.47,0.00013698,2]
[352593480,1739184659198,-7594.31,0.00013698,2]
[352593481,1739184659207,-151.0,0.00013698,2]
[352593482,1739184659290,-1522.12,0.00013698,2]
[352593483,1739184659300,-3200.14,0.00013698,2]
[352593484,1739184659310,-514.01,0.00013698,2]
[352593485,1739184659319,-586.2,0.00013698,2]
[352593486,1739184659329,-17335.31,0.00013698,2]
[352593487,1739184659338,-841.1,0.00013698,2]
[352593488,1739184659347,-566.1,0.00013698,2]
[352593489,1739184659357,-935.03,0.00013698,2]
[352593490,1739184659366,-511.84,0.00013698,2]
[352593491,1739184659375,-1576.8,0.00013698,2]
[352593492,1739184659384,-569.11,0.00013698,2]
[352593493,1739184659394,-1562.67,0.00013698,2]
[352593494,1739184659403,-859.56,0.00013698,2]
[352593495,1739184659412,-683.35,0.00013698,2]
[352593496,1739184659421,-717.77,0.00013698,2]
[352593497,1739184659431,-554.82998487,0.00013698,2]
[352593498,1739184659442,-260.91,0.00013698,2]
[352593499,1739184659451,-690.64,0.00013698,2]
[352593500,1739184659460,-577.85,0.00013698,2]
[352593501,1739184659470,-1341.29,0.00013698,2]
[352593502,1739184659479,-929.02,0.00013698,2]
[352593503,1739184659489,-1074.82,0.00013698,2]
[352593504,1739184659498,-2801.78,0.00013698,2]
[352593505,1739184659506,-409.8,0.00013698,2]
[352593506,1739184659516,-1015.98,0.00013698,2]
[352593507,1739184659525,-2296.21,0.00013698,2]
[352593508,1739184659534,-823.48,0.00013698,2]
[352593509,1739184659544,-562.667168,0.00013699,2]
[352593510,1739184659553,-319.994948,0.00013699,2]
[352593511,1739184659563,-500.0,0.00013699,2]
[352593512,1739184659572,-484.10245036,0.00013699,2]
[352593513,1739184659581,-500.0,0.00013699,2]
[352593514,1739184659591,-500.0,0.00013699,2]
[352593515,1739184659601,-500.0,0.00013699,2]
[352593516,1739184659611,-500.0,0.00013699,2]
[352593517,1739184659620,-500.0,0.00013699,2]
[352593518,1739184659629,-500.0,0.00013699,2]
[352593519,1739184659638,-628.67045072,0.00013699,2]
[352593520,1739184659647,-500.0,0.00013699,2]
[352593521,1739184659656,-500.0,0.00013699,2]
[352593522,1739184659665,-500.0,0.00013699,2]
[352593523,1739184659675,-173.52748736,0.000137,2]
[352593524,1739184659685,-173.52,0.000137,2]
[352593525,1739184659695,-161.95898821,0.000137,2]
[352593526,1739184659704,-161.95898821,0.000137,2]
[352593527,1739184659714,-161.95898821,0.000137,2]
[352593528,1739184659724,-161.95898821,0.000137,2]
[352593529,1739184659734,-161.95,0.000137,2]
[352593530,1739184659745,-151.234386,0.00013835,2]
[352593531,1739184659754,-151.0,0.00013835,2]
[352593532,1739184659764,-151.0,0.00013835,2]
[352593533,1739184659774,-780.446601,0.00013835,2]
[352593534,1739184659784,-780.446601,0.00013835,2]
[352593535,1739184659794,-897.47,0.00013835,2]
[352593536,1739184659803,-458.14,0.00013835,2]
[352593537,1739184659813,-535.73,0.00013835,2]
[352593538,1739184659823,-645.58,0.00013835,2]
[352593539,1739184659832,-151.0,0.00013835,2]
[352593540,1739184659842,-528.76,0.00013835,2]
[352593541,1739184659851,-224.62088,0.00013835,2]
[352593542,1739184659860,-224.62088,0.00013835,2]
[352593543,1739184659870,-583.35,0.00013835,2]
[352593544,1739184659879,-726.45,0.00013835,2]
[352593545,1739184659888,-500.0,0.00013835,2]
[352593546,1739184659897,-7025.82,0.00013835,2]
[352593547,1739184659908,-751.32,0.00013835,2]
[352593548,1739184659917,-1185.47,0.00013835,2]
[352593549,1739184659927,-2829.52,0.00013835,2]
[352593550,1739184659937,-615.86,0.00013835,2]
[352593551,1739184659949,-500.0,0.00013835,2]
[352593552,1739184659959,-1553.46,0.00013835,2]
[352593553,1739184659969,-949.6,0.00013835,2]
[352593554,1739184659978,-1053.69,0.00013835,2]
[352593555,1739184659989,-720.36,0.00013835,2]
[352593556,1739184659998,-7594.31,0.00013835,2]
[352593557,1739184660008,-518.47,0.00013835,2]
[352593558,1739184660019,-1522.12,0.00013835,2]
[352593559,1739184660031,-3200.14,0.00013835,2]
[352593560,1739184660041,-514.01,0.00013835,2]
[352593561,1739184660052,-586.2,0.00013835,2]
[352593562,1739184660062,-17335.31,0.00013835,2]
[352593563,1739184660072,-841.1,0.00013835,2]
[352593564,1739184660081,-566.1,0.00013835,2]
[352593565,1739184660091,-935.03,0.00013835,2]
[352593566,1739184660101,-511.84,0.00013835,2]
[352593567,1739184660111,-1576.8,0.00013835,2]
[352593568,1739184660121,-569.11,0.00013835,2]
[352593569,1739184660131,-1562.67,0.00013835,2]
[352593570,1739184660141,-859.56,0.00013835,2]
[352593571,1739184660151,-683.35,0.00013835,2]
[352593572,1739184660162,-717.77,0.00013835,2]
[352593573,1739184660173,-690.64,0.00013835,2]
[352593574,1739184660183,-577.85,0.00013835,2]
[352593575,1739184660194,-1341.29,0.00013835,2]
[352593576,1739184660206,-929.02,0.00013835,2]
[352593577,1739184660216,-500.0,0.00013835,2]
[352593578,1739184660227,-1074.82,0.00013835,2]
[352593579,1739184660238,-500.0,0.00013835,2]
[352593580,1739184660249,-150.21,0.00013835,2]
[352593581,1739184660260,-2801.78,0.00013835,2]
[352593582,1739184660271,-1015.98,0.00013835,2]
[352593583,1739184660283,-2296.21,0.00013835,2]
[352593584,1739184660294,-174.70464572,0.00013853,2]
[352593585,1739184660303,-897.47,0.00013972,2]
[352593586,1739184660313,-535.73,0.00013972,2]
[352593587,1739184660322,-645.58,0.00013972,2]
[352593588,1739184660332,-151.0,0.00013972,2]
[352593589,1739184660342,-528.76,0.00013972,2]
[352593590,1739184660352,-583.35,0.00013972,2]
[352593591,1739184660362,-726.45,0.00013972,2]
[352593592,1739184660372,-7025.82,0.00013972,2]
[352593593,1739184660382,-751.32,0.00013972,2]
[352593594,1739184660392,-1185.47,0.00013972,2]
[352593595,1739184660402,-2829.52,0.00013972,2]
[352593596,1739184660411,-615.86,0.00013972,2]
[352593597,1739184660421,-500.0,0.00013972,2]
[352593598,1739184660430,-1553.46,0.00013972,2]
[352593599,1739184660440,-949.6,0.00013972,2]
[352593600,1739184660450,-1053.69,0.00013972,2]
[352593601,1739184660460,-720.36,0.00013972,2]
[352593602,1739184660469,-7594.31,0.00013972,2]
[352593603,1739184660478,-518.47,0.00013972,2]
[352593604,1739184660487,-1522.12,0.00013972,2]
[352593605,1739184660497,-3200.14,0.00013972,2]
[352593606,1739184660506,-514.01,0.00013972,2]
[352593607,1739184660516,-586.2,0.00013972,2]
[352593608,1739184660525,-17335.31,0.00013972,2]
[352593609,1739184660535,-841.1,0.00013972,2]
[352593610,1739184660544,-566.1,0.00013972,2]
[352593611,1739184660553,-935.03,0.00013972,2]
[352593612,1739184660563,-511.84,0.00013972,2]
[352593613,1739184660572,-1576.8,0.00013972,2]
[352593614,1739184660581,-569.11,0.00013972,2]
[352593615,1739184660591,-1562.67,0.00013972,2]
[352593616,1739184660600,-859.56,0.00013972,2]
[352593617,1739184660609,-683.35,0.00013972,2]
[352593618,1739184660619,-151.0,0.00013972,2]
[352593619,1739184660628,-717.77,0.00013972,2]
[352593620,1739184660638,-690.64,0.00013972,2]
[352593621,1739184660647,-577.85,0.00013972,2]
[352593622,1739184660657,-1341.29,0.00013972,2]
[352593623,1739184660666,-151.0,0.00013972,2]
[352593624,1739184660675,-929.02,0.00013972,2]
[352593625,1739184660684,-1074.82,0.00013972,2]
[352593626,1739184660694,-2801.78,0.00013972,2]
[352593627,1739184660703,-1015.98,0.00013972,2]
[352593628,1739184660713,-2296.21,0.00013972,2]
[352593629,1739184660722,-478876.86518269,0.0001399,7]
[352593630,1739184660745,-500.0,0.00011369,2]
[352593631,1739184660755,-172055.31488247,0.0001399,7]
[352593632,1739184660989,-500.0,0.00010958,2]
[352593633,1739184660999,-1977.62032581,0.00010959,2]
[352593634,1739185598122,-176.44026546,9.924e-05,2]
[352593635,1739185629116,-3647.7826596,9.924e-05,2]
[352593636,1739185629137,-425.26833753,0.00010025,2]
[352593637,1739185647098,-112.66683597,0.00010025,2]
[352593638,1739185647120,-300.0,0.0001005,2]
[352593639,1739185647140,-4197.17554598,0.00010051,2]
[352593640,1739185653119,-2014.11711312,0.00010051,2]
[352593641,1739185653148,-279.12456141,0.00010858,2]
[352593642,1739185653169,-4742.79464686,0.00010894,2]
[352593688,1739185832908,-400.0,0.00010685,2]
[352593690,1739185832918,-319.81926914,0.00010858,2]
[352593691,1739185832927,-753.46964815,0.00010886,2]
[352593741,1739185838558,-781.27293045,0.00010882,2]
[352593742,1739185838570,-6657.42460233,0.00010882,2]
[352593743,1739185838579,-300.0,0.00010894,2]
[352593744,1739185838589,-38039.3414354,0.00010895,2]
[352593745,1739185838598,-446.21750043,0.00010957,2]
[352593746,1739185838607,-500.0,0.00010958,2]
[352593747,1739185838617,-500.0,0.00010958,2]
[352593748,1739185838628,-500.0,0.00010958,2]
[352593749,1739185838638,-507.11986922,0.00010958,2]
[352593750,1739185838648,-500.0,0.00010958,2]
[352593751,1739185838658,-500.0,0.00010958,2]
[352593752,1739185838668,-500.0,0.00010958,2]
[352593753,1739185838678,-500.0,0.00010958,2]
[352593754,1739185838688,-500.0,0.00010958,2]
[352593755,1739185838698,-500.0,0.00010958,2]
[352593756,1739185838708,-500.0,0.00010958,2]
[352593757,1739185838718,-500.0,0.00010958,2]
[352593758,1739185838728,-500.0,0.00010958,2]
[352593759,1739185838738,-500.0,0.00010958,2]
[352593760,1739185838747,-500.0,0.00010958,2]
[352593761,1739185838756,-500.0,0.00010958,2]
[352593762,1739185838765,-500.0,0.00010958,2]
[352593763,1739185838774,-516.93897456,0.00010958,2]
[352593764,1739185838783,-500.0,0.00010958,2]
[352593765,1739185838793,-500.0,0.00010958,2]
[352593766,1739185838803,-500.0,0.00010958,2]
[352593767,1739185838811,-500.0,0.00010958,2]
[352593768,1739185838821,-500.0,0.00010958,2]
[352593769,1739185838830,-500.0,0.00010958,2]
[352593770,1739185838839,-500.0,0.00010958,2]
[352593771,1739185838848,-500.85863785,0.00010958,2]
[352593772,1739185838857,-500.0,0.00010958,2]
[352593773,1739185838866,-500.0,0.00010958,2]
[352593774,1739185838875,-500.0,0.00010958,2]
[352593775,1739185838884,-500.0,0.00010958,2]
[352593776,1739185838893,-498.5406815,0.00010958,2]
[352593777,1739185838903,-500.0,0.00010958,2]
[352593778,1739185838911,-500.0,0.00010958,2]
[352593779,1739185838921,-500.0,0.00010958,2]
[352593780,1739185838931,-500.0,0.00010958,2]
[352593781,1739185838941,-500.0,0.00010958,2]
[352593782,1739185838950,-500.0,0.00010958,2]
[352593783,1739185838959,-500.0,0.00010958,2]
[352593784,1739185838969,-500.0,0.00010958,2]
[352593785,1739185838979,-500.0,0.00010958,2]
[352593786,1739185838988,-500.0,0.00010958,2]
[352593787,1739185838997,-504.34972043,0.00010958,2]
[352593788,1739185839006,-500.0,0.00010958,2]
[352593789,1739185839015,-306.8049861,0.00010958,2]
[352593790,1739185839024,-507.21948057,0.00010958,2]
[352593791,1739185839033,-500.0,0.00010958,2]
[352593792,1739185839042,-500.0,0.00010958,2]
[352593793,1739185839051,-500.0,0.00010958,2]
[352593794,1739185839060,-500.0,0.00010958,2]
[352593795,1739185839069,-500.0,0.00010958,2]
[352593796,1739185839079,-504.48039399,0.00010958,2]
[352593797,1739185839088,-347.69296401,0.00010958,2]
[352593798,1739185839098,-500.0,0.00010958,2]
[352593799,1739185839107,-500.0,0.00010958,2]
[352593800,1739185839116,-500.0,0.00010958,2]
[352593801,1739185839125,-565.48910978,0.00010958,2]
[352593802,1739185839134,-500.0,0.00010958,2]
[352593803,1739185839143,-500.0,0.00010958,2]
[352593804,1739185839151,-500.87399058,0.00010958,2]
[352593805,1739185839161,-502.59049241,0.00010958,2]
[352593806,1739185839170,-500.0,0.00010958,2]
[352593807,1739185839180,-500.0,0.00010958,2]
[352593808,1739185839189,-500.0,0.00010958,2]
[352593809,1739185839197,-500.0,0.00010958,2]
[352593810,1739185839207,-500.0,0.00010958,2]
[352593811,1739185839216,-500.0,0.00010958,2]
[352593812,1739185839227,-500.0,0.00010958,2]
[352593813,1739185839235,-500.0,0.00010958,2]
[352593814,1739185839245,-500.0,0.00010958,2]
[352593815,1739185839255,-500.0,0.00010958,2]
[352593816,1739185839264,-500.0,0.00010958,2]
[352593817,1739185839273,-500.0,0.00010958,2]
[352593818,1739185839282,-435.03157338,0.00010958,2]
[352593819,1739185839291,-500.0,0.00010958,2]
[352593820,1739185839301,-500.0,0.00010958,2]
[352593821,1739185839310,-500.0,0.00010958,2]
[352593822,1739185839319,-500.0,0.00010958,2]
[352593823,1739185839331,-500.0,0.00010958,2]
[352593824,1739185839340,-500.0,0.00010958,2]
[352593825,1739185839349,-500.0,0.00010958,2]
[352593826,1739185839358,-500.0,0.00010958,2]
[352593827,1739185839367,-758.83,0.00010958,2]
[352593828,1739185839376,-500.0,0.00010958,2]
[352593829,1739185839385,-500.0,0.00010958,2]
[352593830,1739185839396,-500.0,0.00010958,2]
[352593831,1739185839406,-500.0,0.00010958,2]
[352593832,1739185839415,-500.0,0.00010958,2]
[352593833,1739185839425,-500.0,0.00010958,2]
[352593834,1739185839435,-503.35138923,0.00010958,2]
[352593835,1739185839445,-584.02,0.00010958,2]
[352593836,1739185839455,-501.45372425,0.00010958,2]
[352593837,1739185839464,-500.0,0.00010958,2]
[352593838,1739185839476,-500.0,0.00010958,2]
[352593839,1739185839486,-502.07647827,0.00010958,2]
[352593840,1739185839496,-194.47431504,0.00010958,2]
[352593841,1739185839506,-500.0,0.00010958,2]
[352593842,1739185839516,-500.0,0.00010958,2]
[352593843,1739185839525,-500.0,0.00010958,2]
[352593844,1739185839535,-500.0,0.00010958,2]
[352593845,1739185839545,-500.0,0.00010958,2]
[352593846,1739185839554,-500.0,0.00010958,2]
[352593847,1739185839563,-500.0,0.00010958,2]
[352593848,1739185839574,-500.0,0.00010958,2]
[352593849,1739185839584,-500.0,0.00010958,2]
[352593850,1739185839593,-500.0,0.00010958,2]
[352593851,1739185839602,-500.0,0.00010958,2]
[352593852,1739185839611,-500.0,0.00010958,2]
[352593853,1739185839620,-500.0,0.00010958,2]
[352593854,1739185839630,-500.0,0.00010958,2]
[352593855,1739185839641,-500.0,0.00010958,2]
[352593856,1739185839652,-500.0,0.00010958,2]
[352593857,1739185839663,-500.0,0.00010958,2]
[352593858,1739185839673,-500.0,0.00010958,2]
[352593859,1739185839683,-500.0,0.00010958,2]
[352593860,1739185839693,-500.0,0.00010958,2]
[352593861,1739185839703,-500.0,0.00010958,2]
[352593862,1739185839714,-500.0,0.00010958,2]
[352593863,1739185839723,-500.0,0.00010958,2]
[352593864,1739185839733,-500.0,0.00010958,2]
[352593865,1739185839743,-500.0,0.00010958,2]
[352593866,1739185839752,-500.0,0.00010958,2]
[352593867,1739185839762,-500.0,0.00010958,2]
[352593868,1739185839772,-500.0,0.00010958,2]
[352593869,1739185839782,-500.0,0.00010958,2]
[352593870,1739185839791,-500.0,0.00010958,2]
[352593871,1739185839801,-500.0,0.00010958,2]
[352593872,1739185839810,-500.0,0.00010958,2]
[352593873,1739185839820,-572.79,0.00010958,2]
[352593874,1739185839829,-500.0,0.00010958,2]
[352593875,1739185839838,-500.0,0.00010958,2]
[352593876,1739185839848,-500.0,0.00010958,2]
[352593877,1739185839857,-500.0,0.00010958,2]
[352593878,1739185839867,-500.0,0.00010958,2]
[352593879,1739185839876,-500.0,0.00010958,2]
[352593880,1739185839885,-500.0,0.00010958,2]
[352593881,1739185839894,-500.0,0.00010958,2]
[352593882,1739185839904,-500.0,0.00010958,2]
[352593883,1739185839914,-500.0,0.00010958,2]
[352593884,1739185839923,-500.0,0.00010958,2]
[352593885,1739185839933,-500.0,0.00010958,2]
[352593886,1739185839943,-500.0,0.00010958,2]
[352593887,1739185839952,-500.0,0.00010958,2]
[352593888,1739185839961,-500.0,0.00010958,2]
[352593889,1739185839970,-500.0,0.00010958,2]
[352593890,1739185839981,-500.0,0.00010958,2]
[352593891,1739185839990,-500.0,0.00010958,2]
[352593892,1739185840000,-500.0,0.00010958,2]
[352593893,1739185840010,-500.0,0.00010958,2]
[352593894,1739185840020,-500.0,0.00010958,2]
[352593895,1739185840029,-500.0,0.00010958,2]
[352593896,1739185840039,-500.0,0.00010958,2]
[352593897,1739185840050,-500.0,0.00010958,2]
[352593898,1739185840063,-500.0,0.00010958,2]
[352593900,1739185840073,-550.54473557,0.00010958,2]
[352593901,1739185840082,-500.0,0.00010958,2]
[352593903,1739185840092,-500.0,0.00010958,2]
[352593904,1739185840102,-500.0,0.00010958,2]
[352593905,1739185840111,-500.0,0.00010958,2]
[352593906,1739185840121,-500.0,0.00010958,2]
[352593907,1739185840130,-500.0,0.00010958,2]
[352593908,1739185840139,-500.0,0.00010958,2]
[352593909,1739185840149,-500.0,0.00010958,2]
[352593910,1739185840158,-500.0,0.00010958,2]
[352593911,1739185840167,-500.0,0.00010958,2]
[352593912,1739185840177,-500.0,0.00010958,2]
[352593913,1739185840186,-500.0,0.00010958,2]
[352593914,1739185840195,-428.12,0.00010958,2]
[352593915,1739185840204,-500.0,0.00010958,2]
[352593916,1739185840213,-500.0,0.00010958,2]
[352593917,1739185840222,-500.0,0.00010958,2]
[352593918,1739185840232,-500.0,0.00010958,2]
[352593919,1739185840241,-500.0,0.00010958,2]
[352593920,1739185840251,-622.69,0.00010958,2]
[352593921,1739185840260,-500.0,0.00010958,2]
[352593922,1739185840269,-500.0,0.00010958,2]
[352593923,1739185840279,-500.0,0.00010958,2]
[352593924,1739185840288,-500.0,0.00010958,2]
[352593925,1739185840298,-500.0,0.00010958,2]
[352593926,1739185840307,-500.0,0.00010958,2]
[352593927,1739185840326,-500.0,0.00010958,2]
[352593928,1739185840336,-500.0,0.00010958,2]
[352593930,1739185840346,-500.0,0.00010958,2]
[352593932,1739185840355,-651.86,0.00010958,2]